[Event "*** Titled Tuesday 3|2 Blitz"]
[Site "Chess.com"]
[Date "2016.09.06"]
[Round "6"]
[White "jk13"]
[Black "DanielNaroditsky"]
[Result "0-1"]
[WhiteElo "2509"]
[BlackElo "2717"]
[TimeControl "180+2"]
[EndTime "18:09:39 PDT"]
[Termination "DanielNaroditsky won by resignation"]

1. e4 {[%clk 0:03:00.8]} 1... e6 {[%clk 0:02:53.1]} 2. d4 {[%clk 0:02:59.8]}
2... d5 {[%clk 0:02:54.2]} 3. Nd2 {[%clk 0:03:01.4]} 3... Be7 {[%clk 0:02:54.9]}
4. Bd3 {[%clk 0:02:59.9]} 4... c5 {[%clk 0:02:54.9]} 5. dxc5 {[%clk 0:02:58.1]}
5... Nf6 {[%clk 0:02:55]} 6. Qe2 {[%clk 0:02:57.6]} 6... O-O {[%clk 0:02:55.2]}
7. Ngf3 {[%clk 0:02:58.4]} 7... a5 {[%clk 0:02:55.6]} 8. e5 {[%clk 0:02:58.7]}
8... Nfd7 {[%clk 0:02:55.7]} 9. c4 {[%clk 0:02:57.3]} 9... Nxc5 {[%clk 0:02:55]}
10. Bb1 {[%clk 0:02:58.3]} 10... b6 {[%clk 0:02:50.3]} 11. O-O {[%clk
0:02:59.4]} 11... Ba6 {[%clk 0:02:51.2]} 12. b3 {[%clk 0:03:00.2]} 12... Nc6
{[%clk 0:02:48.1]} 13. Bb2 {[%clk 0:03:01.7]} 13... a4 {[%clk 0:02:48.5]} 14.
Rd1 {[%clk 0:03:01.1]} 14... Qc7 {[%clk 0:02:48.9]} 15. Qe3 {[%clk 0:03:01]}
15... axb3 {[%clk 0:02:45.5]} 16. axb3 {[%clk 0:03:02]} 16... dxc4 {[%clk
0:02:46.8]} 17. bxc4 {[%clk 0:03:01.1]} 17... Rad8 {[%clk 0:02:40.4]} 18. Re1
{[%clk 0:02:50]} 18... Na5 {[%clk 0:02:38.7]} 19. Rc1 {[%clk 0:02:38]} 19... Bb7
{[%clk 0:02:34.4]} 20. Nd4 {[%clk 0:02:34]} 20... Qd7 {[%clk 0:02:24.7]} 21. h3
{[%clk 0:02:29.6]} 21... h6 {[%clk 0:02:24.1]} 22. N2f3 {[%clk 0:02:25.7]} 22...
Ra8 {[%clk 0:02:07.3]} 23. Qe2 {[%clk 0:02:09.9]} 23... Rfd8 {[%clk 0:02:02.5]}
24. Qc2 {[%clk 0:02:09]} 24... Be4 {[%clk 0:02:02.8]} 25. Qe2 {[%clk 0:02:06.8]}
25... Bxb1 {[%clk 0:02:02.9]} 26. Rcxb1 {[%clk 0:02:08.5]} 26... Nab3 {[%clk
0:01:57]} 27. Rxa8 {[%clk 0:02:08.7]} 27... Rxa8 {[%clk 0:01:57.1]} 28. Nxb3
{[%clk 0:02:05.1]} 28... Nxb3 {[%clk 0:01:59]} 29. Bc3 {[%clk 0:02:03.4]} 29...
Ra3 {[%clk 0:01:53]} 30. Qc2 {[%clk 0:01:49.6]} 30... Qa4 {[%clk 0:01:44.1]} 31.
Be1 {[%clk 0:01:24.5]} 31... Nc5 {[%clk 0:01:31.2]} 32. Qxa4 {[%clk 0:01:13.4]}
32... Nxa4 {[%clk 0:01:33.1]} 33. Bb4 {[%clk 0:01:13]} 33... Bxb4 {[%clk
0:01:30.2]} 34. Rxb4 {[%clk 0:01:14.9]} 34... Ra1+ {[%clk 0:01:27]} 35. Kh2
{[%clk 0:01:15.5]} 35... Ra2 {[%clk 0:01:28.9]} 36. Kg3 {[%clk 0:01:16.1]} 36...
Nc5 {[%clk 0:01:21.9]} 37. Rxb6 {[%clk 0:01:03.5]} 37... Ne4+ {[%clk 0:01:22.5]}
38. Kh2 {[%clk 0:01:04.8]} 38... Rxf2 {[%clk 0:01:20.7]} 39. Rb8+ {[%clk
0:01:04.5]} 39... Kh7 {[%clk 0:01:21.4]} 40. Rb7 {[%clk 0:01:03.1]} 40... Kg6
{[%clk 0:01:21.3]} 41. Nh4+ {[%clk 0:01:00]} 41... Kh5 {[%clk 0:01:19.2]} 42.
Nf3 {[%clk 0:01:00.1]} 42... Ng5 {[%clk 0:01:05.1]} 43. Kg1 {[%clk 0:00:50]}
43... Nxh3+ {[%clk 0:01:01.7]} 44. gxh3 {[%clk 0:00:36.9]} 44... Rxf3 {[%clk
0:01:00.8]} 45. Kg2 {[%clk 0:00:38.8]} 45... Rf4 {[%clk 0:01:00.2]} 46. c5
{[%clk 0:00:26.6]} 46... g5 {[%clk 0:00:53.1]} 47. c6 {[%clk 0:00:25.8]} 47...
Kg6 {[%clk 0:00:53.1]} 48. c7 {[%clk 0:00:20.5]} 48... Rc4 {[%clk 0:00:53.2]}
49. Kf3 {[%clk 0:00:20]} 49... Kf5 {[%clk 0:00:53.2]} 50. c8=Q {[%clk
0:00:20.7]} 50... Rxc8 {[%clk 0:00:54.2]} 51. Rxf7+ {[%clk 0:00:22.3]} 51...
Kxe5 {[%clk 0:00:55]} 52. Rh7 {[%clk 0:00:23.4]} 52... Rc3+ {[%clk 0:00:51.9]}
53. Kg4 {[%clk 0:00:24.1]} 53... Rc4+ {[%clk 0:00:52.4]} 54. Kg3 {[%clk
0:00:20.5]} 54... Rh4 {[%clk 0:00:54.3]} 0-1

[Event "*** Titled Tuesday 3|2 Blitz"]
[Site "Chess.com"]
[Date "2016.09.06"]
[Round "6"]
[White "pedromartinez91"]
[Black "ruifeng"]
[Result "1-0"]
[WhiteElo "2376"]
[BlackElo "2332"]
[TimeControl "180+2"]
[EndTime "18:09:39 PDT"]
[Termination "pedromartinez91 won on time"]

1. e4 {[%clk 0:02:54.4]} 1... e5 {[%clk 0:03:00.7]} 2. Nf3 {[%clk 0:02:48.9]}
2... Nc6 {[%clk 0:03:01.5]} 3. Bb5 {[%clk 0:02:39.4]} 3... a6 {[%clk 0:03:02.3]}
4. Ba4 {[%clk 0:02:39.7]} 4... d6 {[%clk 0:03:03.2]} 5. c3 {[%clk 0:02:37.5]}
5... Bd7 {[%clk 0:03:03.2]} 6. d3 {[%clk 0:02:38]} 6... g6 {[%clk 0:03:02]} 7.
O-O {[%clk 0:02:38]} 7... Bg7 {[%clk 0:03:03.1]} 8. Nbd2 {[%clk 0:02:38.9]} 8...
Nf6 {[%clk 0:03:01.2]} 9. Re1 {[%clk 0:02:40.3]} 9... O-O {[%clk 0:03:02.1]} 10.
Nf1 {[%clk 0:02:40.6]} 10... b5 {[%clk 0:02:56.6]} 11. Bb3 {[%clk 0:02:41.1]}
11... Na5 {[%clk 0:02:57.8]} 12. Bc2 {[%clk 0:02:39.7]} 12... c5 {[%clk
0:02:58.9]} 13. Bg5 {[%clk 0:02:39.5]} 13... h6 {[%clk 0:02:49.9]} 14. Be3
{[%clk 0:02:39.2]} 14... Nc6 {[%clk 0:02:39.5]} 15. Qd2 {[%clk 0:02:39.5]} 15...
Ng4 {[%clk 0:02:38.1]} 16. h3 {[%clk 0:02:36.5]} 16... Nxe3 {[%clk 0:02:38.9]}
17. Nxe3 {[%clk 0:02:33.8]} 17... Ne7 {[%clk 0:02:32.2]} 18. d4 {[%clk
0:02:32.9]} 18... exd4 {[%clk 0:02:24.4]} 19. cxd4 {[%clk 0:02:33.7]} 19... Rc8
{[%clk 0:02:20]} 20. Rad1 {[%clk 0:02:25]} 20... cxd4 {[%clk 0:02:17.8]} 21.
Nxd4 {[%clk 0:02:25]} 21... Qb6 {[%clk 0:02:18.4]} 22. Bb3 {[%clk 0:02:22]}
22... Rfd8 {[%clk 0:01:37.5]} 23. Ng4 {[%clk 0:02:06.5]} 23... Bxg4 {[%clk
0:01:31.7]} 24. hxg4 {[%clk 0:02:05.7]} 24... Nc6 {[%clk 0:01:20.2]} 25. Nxc6
{[%clk 0:01:57.7]} 25... Qxc6 {[%clk 0:01:02.5]} 26. Rc1 {[%clk 0:01:56]} 26...
Qd7 {[%clk 0:00:58.8]} 27. f3 {[%clk 0:01:44.5]} 27... Qa7+ {[%clk 0:00:51.2]}
28. Kh1 {[%clk 0:01:42.3]} 28... Qe7 {[%clk 0:00:52.2]} 29. Red1 {[%clk
0:01:37.2]} 29... Qh4+ {[%clk 0:00:43.5]} 30. Kg1 {[%clk 0:01:37.1]} 30... Be5
{[%clk 0:00:43.7]} 31. f4 {[%clk 0:01:33.4]} 31... Bg7 {[%clk 0:00:41.2]} 32.
Qd5 {[%clk 0:01:14]} 32... Qe7 {[%clk 0:00:34]} 33. Rxc8 {[%clk 0:00:53.1]}
33... Rxc8 {[%clk 0:00:34.8]} 34. Qxd6 {[%clk 0:00:53.2]} 34... Qxe4 {[%clk
0:00:20.3]} 35. Bxf7+ {[%clk 0:00:49.8]} 35... Kh7 {[%clk 0:00:21.4]} 36. f5
{[%clk 0:00:47.5]} 36... gxf5 {[%clk 0:00:12.4]} 37. Bg6+ {[%clk 0:00:47.4]}
37... Kh8 {[%clk 0:00:13.8]} 38. Bxf5 {[%clk 0:00:47.7]} 38... Qe3+ {[%clk
0:00:15]} 39. Kh1 {[%clk 0:00:46.7]} 39... Re8 {[%clk 0:00:04]} 40. Qg6 {[%clk
0:00:45.2]} 40... Kg8 {[%clk 0:00:05.4]} 41. Qh7+ {[%clk 0:00:36.4]} 41... Kf8
{[%clk 0:00:06.1]} 42. Rf1 {[%clk 0:00:26.7]} 1-0

[Event "*** Titled Tuesday 3|2 Blitz"]
[Site "Chess.com"]
[Date "2016.09.06"]
[Round "6"]
[White "jposthuma"]
[Black "andretta"]
[Result "0-1"]
[WhiteElo "2155"]
[BlackElo "2280"]
[TimeControl "180+2"]
[EndTime "18:09:51 PDT"]
[Termination "andretta won by resignation"]

1. d4 {[%clk 0:03:01.9]} 1... e6 {[%clk 0:02:54]} 2. Nf3 {[%clk 0:03:02.3]} 2...
d5 {[%clk 0:02:48.4]} 3. Bf4 {[%clk 0:03:03]} 3... Nf6 {[%clk 0:02:34.9]} 4. e3
{[%clk 0:03:03.1]} 4... c5 {[%clk 0:02:31.2]} 5. c3 {[%clk 0:03:03.7]} 5... Nc6
{[%clk 0:02:32.2]} 6. Nbd2 {[%clk 0:03:02]} 6... Bd6 {[%clk 0:02:31.3]} 7. Bg3
{[%clk 0:02:45]} 7... O-O {[%clk 0:02:29.8]} 8. Bd3 {[%clk 0:02:44.2]} 8... b6
{[%clk 0:02:19.3]} 9. Qe2 {[%clk 0:02:37.8]} 9... Bb7 {[%clk 0:02:17.7]} 10. O-O
{[%clk 0:02:37.2]} 10... Qc7 {[%clk 0:02:08.7]} 11. e4 {[%clk 0:02:28.8]} 11...
dxe4 {[%clk 0:02:06.6]} 12. Nxe4 {[%clk 0:02:28.3]} 12... Nxe4 {[%clk
0:01:57.1]} 13. Bxe4 {[%clk 0:02:17.2]} 13... Bxg3 {[%clk 0:01:43.1]} 14. hxg3
{[%clk 0:02:11.7]} 14... h6 {[%clk 0:01:44.4]} 15. dxc5 {[%clk 0:02:05.4]} 15...
bxc5 {[%clk 0:01:46.3]} 16. g4 {[%clk 0:02:03.2]} 16... Qf4 {[%clk 0:01:19.3]}
17. Nd2 {[%clk 0:01:55.9]} 17... Na5 {[%clk 0:00:59.2]} 18. g3 {[%clk
0:01:47.2]} 18... Qc7 {[%clk 0:00:53.8]} 19. Nf3 {[%clk 0:01:41.5]} 19... Bxe4
{[%clk 0:00:48.8]} 20. Qxe4 {[%clk 0:01:43.4]} 20... Qc6 {[%clk 0:00:35.4]} 21.
Qxc6 {[%clk 0:01:41.6]} 21... Nxc6 {[%clk 0:00:37.3]} 22. Rad1 {[%clk
0:01:40.1]} 22... Rfd8 {[%clk 0:00:38.6]} 23. Rfe1 {[%clk 0:01:37.7]} 23... Kf8
{[%clk 0:00:38.1]} 24. Kf1 {[%clk 0:01:39]} 24... Ke7 {[%clk 0:00:38.6]} 25. Ke2
{[%clk 0:01:40.4]} 25... Rab8 {[%clk 0:00:39.8]} 26. Rxd8 {[%clk 0:01:36]} 26...
Rxd8 {[%clk 0:00:40.1]} 27. Nd2 {[%clk 0:01:25.8]} 27... Ne5 {[%clk 0:00:35.1]}
28. f3 {[%clk 0:01:22.2]} 28... Rxd2+ {[%clk 0:00:33.1]} 29. Kxd2 {[%clk
0:01:17.9]} 29... Nxf3+ {[%clk 0:00:34.7]} 30. Ke2 {[%clk 0:01:18.9]} 30... Nxe1
{[%clk 0:00:36.6]} 31. Kxe1 {[%clk 0:01:20.8]} 31... Kd6 {[%clk 0:00:37.6]} 32.
Ke2 {[%clk 0:01:14.6]} 32... Kd5 {[%clk 0:00:37.6]} 33. Ke3 {[%clk 0:00:56.5]}
33... e5 {[%clk 0:00:28.1]} 34. b3 {[%clk 0:00:47.7]} 34... g6 {[%clk
0:00:26.7]} 35. a4 {[%clk 0:00:42.8]} 35... f5 {[%clk 0:00:21.4]} 36. gxf5
{[%clk 0:00:40.8]} 36... gxf5 {[%clk 0:00:23.3]} 37. Kf3 {[%clk 0:00:35.6]}
37... a5 {[%clk 0:00:21.4]} 38. Ke3 {[%clk 0:00:34.8]} 38... c4 {[%clk 0:00:20]}
39. b4 {[%clk 0:00:35.7]} 39... axb4 {[%clk 0:00:20.9]} 40. cxb4 {[%clk
0:00:37.6]} 40... Kc6 {[%clk 0:00:21.1]} 41. b5+ {[%clk 0:00:10.3]} 41... Kc5
{[%clk 0:00:17]} 42. Kf3 {[%clk 0:00:08.6]} 42... c3 {[%clk 0:00:17.3]} 43. Ke3
{[%clk 0:00:09.9]} 43... f4+ {[%clk 0:00:18.3]} 44. gxf4 {[%clk 0:00:08.7]}
44... exf4+ {[%clk 0:00:20.2]} 45. Kd3 {[%clk 0:00:10]} 45... f3 {[%clk
0:00:21.3]} 46. Ke3 {[%clk 0:00:08.5]} 46... c2 {[%clk 0:00:22.2]} 47. Kxf3
{[%clk 0:00:10.1]} 47... c1=Q {[%clk 0:00:23]} 0-1

[Event "*** Titled Tuesday 3|2 Blitz"]
[Site "Chess.com"]
[Date "2016.09.06"]
[Round "6"]
[White "papapizza_old"]
[Black "SidArun"]
[Result "1-0"]
[WhiteElo "2268"]
[BlackElo "2016"]
[TimeControl "180+2"]
[EndTime "18:10:13 PDT"]
[Termination "papapizza_old won by resignation"]

1. d4 {[%clk 0:03:01.9]} 1... Nf6 {[%clk 0:03:00.7]} 2. c4 {[%clk 0:03:02.5]}
2... c5 {[%clk 0:03:02.6]} 3. d5 {[%clk 0:03:03.1]} 3... e6 {[%clk 0:03:04.1]}
4. Nc3 {[%clk 0:03:03.6]} 4... exd5 {[%clk 0:03:05.8]} 5. cxd5 {[%clk
0:03:05.1]} 5... d6 {[%clk 0:03:07.7]} 6. Nf3 {[%clk 0:03:05.3]} 6... g6 {[%clk
0:03:09.2]} 7. Nd2 {[%clk 0:03:06.1]} 7... Bg7 {[%clk 0:03:10.6]} 8. e4 {[%clk
0:03:07.2]} 8... O-O {[%clk 0:03:10.8]} 9. Be2 {[%clk 0:03:08.3]} 9... Na6
{[%clk 0:03:07.9]} 10. O-O {[%clk 0:03:08.1]} 10... Nc7 {[%clk 0:03:08.9]} 11.
a4 {[%clk 0:02:44.5]} 11... Rb8 {[%clk 0:02:58.8]} 12. Nc4 {[%clk 0:02:40.7]}
12... a6 {[%clk 0:02:39.8]} 13. Bf4 {[%clk 0:02:40.6]} 13... Nfe8 {[%clk
0:02:39.2]} 14. a5 {[%clk 0:02:36.2]} 14... Nb5 {[%clk 0:02:29.9]} 15. Na4
{[%clk 0:02:33]} 15... Nd4 {[%clk 0:02:25.8]} 16. Bd3 {[%clk 0:02:33.8]} 16...
f5 {[%clk 0:02:13.2]} 17. f3 {[%clk 0:02:34.3]} 17... g5 {[%clk 0:02:13]} 18.
Bg3 {[%clk 0:02:32.9]} 18... f4 {[%clk 0:02:14.3]} 19. Bf2 {[%clk 0:02:31.7]}
19... Nc7 {[%clk 0:02:09.3]} 20. Nab6 {[%clk 0:02:20.1]} 20... Ncb5 {[%clk
0:02:10.3]} 21. Re1 {[%clk 0:02:10.1]} 21... Qc7 {[%clk 0:02:06.2]} 22. Rc1
{[%clk 0:01:47.4]} 22... g4 {[%clk 0:01:39.6]} 23. Nxc8 {[%clk 0:01:30]} 23...
Qxc8 {[%clk 0:01:36.5]} 24. fxg4 {[%clk 0:01:25.5]} 24... f3 {[%clk 0:01:37.4]}
25. h3 {[%clk 0:01:18.4]} 25... h5 {[%clk 0:01:38.5]} 26. e5 {[%clk 0:01:11.1]}
26... hxg4 {[%clk 0:01:36.9]} 27. Nxd6 {[%clk 0:01:00]} 27... Nxd6 {[%clk
0:01:35.8]} 28. exd6 {[%clk 0:01:01.5]} 28... gxh3 {[%clk 0:01:35.9]} 29. g3
{[%clk 0:00:59.6]} 29... Qg4 {[%clk 0:01:26.6]} 30. Kh2 {[%clk 0:00:57.5]} 30...
Rbe8 {[%clk 0:01:21.9]} 31. Rxc5 {[%clk 0:00:43]} 31... Ne2 {[%clk 0:01:14.8]}
32. Rc4 {[%clk 0:00:42.6]} 32... Qg5 {[%clk 0:01:12.7]} 33. Rh4 {[%clk
0:00:39.2]} 33... Be5 {[%clk 0:01:12.6]} 34. Rxh3 {[%clk 0:00:24.3]} 34... Nf4
{[%clk 0:00:43.7]} 35. Rxe5 {[%clk 0:00:19.4]} 35... Rxe5 {[%clk 0:00:41.1]} 36.
Bf1 {[%clk 0:00:13]} 36... Nxh3 {[%clk 0:00:38.4]} 37. Bxh3 {[%clk 0:00:14.9]}
37... Re2 {[%clk 0:00:38.9]} 38. Qd4 {[%clk 0:00:13.4]} 38... Qg7 {[%clk
0:00:30.9]} 39. Be6+ {[%clk 0:00:11.8]} 39... Kh8 {[%clk 0:00:24.3]} 40. Qc5
{[%clk 0:00:03.9]} 40... Re8 {[%clk 0:00:15]} 41. Kg1 {[%clk 0:00:03.4]} 41...
R2xe6 {[%clk 0:00:13.1]} 42. dxe6 {[%clk 0:00:04.2]} 42... Rxe6 {[%clk
0:00:12.4]} 43. Bd4 {[%clk 0:00:05]} 43... Rf6 {[%clk 0:00:14.3]} 44. Bxf6
{[%clk 0:00:05.1]} 44... Qxf6 {[%clk 0:00:15.6]} 45. Qh5+ {[%clk 0:00:06.7]}
45... Kg7 {[%clk 0:00:16.4]} 46. Qg4+ {[%clk 0:00:07.9]} 46... Kf7 {[%clk
0:00:17.9]} 47. Qf4 {[%clk 0:00:09]} 47... Qxf4 {[%clk 0:00:18.8]} 48. gxf4
{[%clk 0:00:10.9]} 48... Ke6 {[%clk 0:00:20.5]} 49. Kf2 {[%clk 0:00:12]} 49...
Kxd6 {[%clk 0:00:22.4]} 50. Kxf3 {[%clk 0:00:13.5]} 50... Ke6 {[%clk 0:00:24.3]}
51. Ke4 {[%clk 0:00:14.7]} 51... Kf6 {[%clk 0:00:25.7]} 52. f5 {[%clk
0:00:16.2]} 1-0

[Event "*** Titled Tuesday 3|2 Blitz"]
[Site "Chess.com"]
[Date "2016.09.06"]
[Round "6"]
[White "E-Shaposhnikov"]
[Black "Evgeny_Levin"]
[Result "1/2-1/2"]
[WhiteElo "2676"]
[BlackElo "2662"]
[TimeControl "180+2"]
[EndTime "18:10:16 PDT"]
[Termination "Game drawn by agreement"]

1. Nf3 {[%clk 0:02:42.2]} 1... c5 {[%clk 0:03:00.4]} 2. c4 {[%clk 0:02:42.5]}
2... Nc6 {[%clk 0:03:00.6]} 3. Nc3 {[%clk 0:02:42.7]} 3... g6 {[%clk 0:02:58.2]}
4. g3 {[%clk 0:02:43.1]} 4... Bg7 {[%clk 0:02:59.1]} 5. Bg2 {[%clk 0:02:44]}
5... e6 {[%clk 0:03:00.7]} 6. O-O {[%clk 0:02:39.4]} 6... Nge7 {[%clk
0:03:01.5]} 7. d3 {[%clk 0:02:37.9]} 7... O-O {[%clk 0:03:00.8]} 8. Bg5 {[%clk
0:02:36]} 8... h6 {[%clk 0:02:59.1]} 9. Bd2 {[%clk 0:02:36.4]} 9... b6 {[%clk
0:02:57.4]} 10. a3 {[%clk 0:02:33.4]} 10... Bb7 {[%clk 0:02:56.5]} 11. Rb1
{[%clk 0:02:33.7]} 11... d5 {[%clk 0:02:55.6]} 12. b4 {[%clk 0:02:30.6]} 12...
cxb4 {[%clk 0:02:49.5]} 13. axb4 {[%clk 0:02:32.5]} 13... dxc4 {[%clk
0:02:51.1]} 14. dxc4 {[%clk 0:02:32.9]} 14... Rc8 {[%clk 0:02:44.8]} 15. Nb5
{[%clk 0:02:16.9]} 15... a6 {[%clk 0:02:43.1]} 16. Na3 {[%clk 0:02:18.1]} 16...
Nf5 {[%clk 0:02:38.8]} 17. b5 {[%clk 0:02:18.9]} 17... axb5 {[%clk 0:02:25.4]}
18. Nxb5 {[%clk 0:02:20.4]} 18... Na5 {[%clk 0:02:19.2]} 19. Bb4 {[%clk
0:02:21]} 19... Qxd1 {[%clk 0:02:16.5]} 20. Rfxd1 {[%clk 0:02:17.8]} 20... Rfd8
{[%clk 0:02:18.4]} 21. g4 {[%clk 0:02:09.7]} 21... Rxd1+ {[%clk 0:02:09.9]} 22.
Rxd1 {[%clk 0:02:11.6]} 22... Bxf3 {[%clk 0:02:03.7]} 23. Bxf3 {[%clk
0:02:04.3]} 23... Nh4 {[%clk 0:02:04.5]} 24. c5 {[%clk 0:01:56.4]} 24... Nxf3+
{[%clk 0:01:59.5]} 25. exf3 {[%clk 0:01:56.6]} 25... Nc6 {[%clk 0:02:01.4]} 26.
Ba3 {[%clk 0:01:49.4]} 26... bxc5 {[%clk 0:02:02.2]} 27. Nd6 {[%clk 0:01:45.1]}
27... Rd8 {[%clk 0:02:03.2]} 28. Bxc5 {[%clk 0:01:46.7]} 28... Nd4 {[%clk
0:01:40.3]} 29. Kg2 {[%clk 0:01:19.8]} 29... Nb5 {[%clk 0:01:36.9]} 30. Rd2
{[%clk 0:01:19.9]} 30... Bf8 {[%clk 0:01:32.7]} 31. Ne4 {[%clk 0:01:19.6]} 31...
Rxd2 {[%clk 0:01:31.9]} 32. Bxf8 {[%clk 0:01:18.6]} 32... Rd1 {[%clk 0:01:27.7]}
33. Bxh6 {[%clk 0:01:18.5]} 33... f5 {[%clk 0:01:28.6]} 34. Nd2 {[%clk
0:01:11.8]} 34... Nd4 {[%clk 0:01:21.1]} 35. Nc4 {[%clk 0:01:05]} 35... Ne2
{[%clk 0:01:20.3]} 36. h3 {[%clk 0:01:00.2]} 36... Rd5 {[%clk 0:01:11.5]} 37.
Nb6 {[%clk 0:00:53.2]} 37... Rb5 {[%clk 0:01:11.2]} 38. Nd7 {[%clk 0:00:51]}
38... Kf7 {[%clk 0:01:06.2]} 39. f4 {[%clk 0:00:43.7]} 39... Rb2 {[%clk
0:01:03.7]} 40. Ne5+ {[%clk 0:00:41.5]} 40... Kg8 {[%clk 0:01:04.7]} 41. Kf3
{[%clk 0:00:33.7]} 41... Nd4+ {[%clk 0:01:02.7]} 42. Ke3 {[%clk 0:00:35.1]}
42... Nc2+ {[%clk 0:01:01.8]} 43. Kd3 {[%clk 0:00:35.7]} 43... Ne1+ {[%clk
0:01:00.4]} 44. Ke3 {[%clk 0:00:34.6]} 44... Rb3+ {[%clk 0:01:01]} 45. Ke2
{[%clk 0:00:33.6]} 45... Rxh3 {[%clk 0:00:58.4]} 46. g5 {[%clk 0:00:34.3]} 46...
Ng2 {[%clk 0:00:58]} 47. Nxg6 {[%clk 0:00:34.9]} 47... Kf7 {[%clk 0:00:44.5]}
48. Ne5+ {[%clk 0:00:33.1]} 48... Ke8 {[%clk 0:00:45.5]} 49. g6 {[%clk
0:00:29.8]} 49... Rxh6 {[%clk 0:00:37.5]} 50. g7 {[%clk 0:00:30.8]} 50... Rg6
{[%clk 0:00:38.4]} 51. Nxg6 {[%clk 0:00:30.8]} 51... Kf7 {[%clk 0:00:39.1]} 52.
Kf3 {[%clk 0:00:29]} 52... Kxg7 {[%clk 0:00:36]} 53. Kxg2 {[%clk 0:00:28.6]}
53... Kxg6 {[%clk 0:00:35]} 54. Kg3 {[%clk 0:00:23.5]} 1/2-1/2

[Event "*** Titled Tuesday 3|2 Blitz"]
[Site "Chess.com"]
[Date "2016.09.06"]
[Round "6"]
[White "cheese111"]
[Black "theprosecution1"]
[Result "1-0"]
[WhiteElo "2286"]
[BlackElo "2439"]
[TimeControl "180+2"]
[EndTime "18:10:17 PDT"]
[Termination "cheese111 won on time"]

1. e4 {[%clk 0:03:01.9]} 1... c5 {[%clk 0:02:59.6]} 2. Nf3 {[%clk 0:03:02.8]}
2... d6 {[%clk 0:03:00.3]} 3. Bb5+ {[%clk 0:03:04.2]} 3... Bd7 {[%clk
0:02:57.3]} 4. Bxd7+ {[%clk 0:03:04.7]} 4... Qxd7 {[%clk 0:02:59.2]} 5. c4
{[%clk 0:03:04.2]} 5... Nf6 {[%clk 0:03:00.5]} 6. Nc3 {[%clk 0:03:04.4]} 6... g6
{[%clk 0:03:02.1]} 7. d4 {[%clk 0:03:01.2]} 7... cxd4 {[%clk 0:03:04]} 8. Nxd4
{[%clk 0:03:01.8]} 8... Bg7 {[%clk 0:03:05.7]} 9. O-O {[%clk 0:03:02.4]} 9...
O-O {[%clk 0:03:07.3]} 10. b3 {[%clk 0:03:02.3]} 10... Nc6 {[%clk 0:03:07]} 11.
Bb2 {[%clk 0:02:38.5]} 11... a6 {[%clk 0:02:58.8]} 12. Nxc6 {[%clk 0:02:13]}
12... bxc6 {[%clk 0:02:54.6]} 13. Qe2 {[%clk 0:02:06.3]} 13... Qc7 {[%clk
0:02:43.8]} 14. Rfe1 {[%clk 0:01:53.4]} 14... Rfd8 {[%clk 0:02:27.7]} 15. Rad1
{[%clk 0:01:52.1]} 15... a5 {[%clk 0:02:26.8]} 16. Na4 {[%clk 0:01:49.4]} 16...
Nd7 {[%clk 0:01:36.8]} 17. Bxg7 {[%clk 0:01:47.6]} 17... Kxg7 {[%clk 0:01:38.7]}
18. Qc2 {[%clk 0:01:45.2]} 18... c5 {[%clk 0:01:32.8]} 19. Nc3 {[%clk
0:01:25.8]} 19... Ne5 {[%clk 0:01:25.8]} 20. Kh1 {[%clk 0:01:13.1]} 20... e6
{[%clk 0:01:20.8]} 21. Rd2 {[%clk 0:01:11.4]} 21... Rd7 {[%clk 0:01:09.8]} 22.
Red1 {[%clk 0:01:08.7]} 22... Rad8 {[%clk 0:01:10.1]} 23. Nb5 {[%clk 0:01:08.2]}
23... Qb8 {[%clk 0:01:09.8]} 24. Qc3 {[%clk 0:01:04.9]} 24... Kg8 {[%clk
0:01:06.5]} 25. Qxa5 {[%clk 0:00:55.3]} 25... d5 {[%clk 0:00:51.5]} 26. exd5
{[%clk 0:00:44.5]} 26... exd5 {[%clk 0:00:50.2]} 27. cxd5 {[%clk 0:00:05.4]}
27... Ng4 {[%clk 0:00:50.7]} 28. d6 {[%clk 0:00:06]} 28... Qb7 {[%clk
0:00:45.7]} 29. h3 {[%clk 0:00:05.9]} 29... Nf6 {[%clk 0:00:45.3]} 30. a4 {[%clk
0:00:05.1]} 30... Ne4 {[%clk 0:00:45.9]} 31. Re2 {[%clk 0:00:05.8]} 31... Qc6
{[%clk 0:00:38.2]} 32. Qe1 {[%clk 0:00:05.8]} 32... Nxd6 {[%clk 0:00:23.4]} 33.
Nxd6 {[%clk 0:00:03.3]} 33... Rxd6 {[%clk 0:00:25.3]} 34. Rxd6 {[%clk
0:00:03.9]} 34... Qxd6 {[%clk 0:00:27]} 35. Re8+ {[%clk 0:00:04.7]} 35... Rxe8
{[%clk 0:00:27.6]} 36. Qxe8+ {[%clk 0:00:06.6]} 36... Kg7 {[%clk 0:00:29.5]} 37.
Qe3 {[%clk 0:00:07.6]} 37... Qd1+ {[%clk 0:00:23.2]} 38. Kh2 {[%clk 0:00:08.4]}
38... Qd6+ {[%clk 0:00:23.6]} 39. g3 {[%clk 0:00:09.5]} 39... h5 {[%clk
0:00:24]} 40. h4 {[%clk 0:00:09.6]} 40... Qd5 {[%clk 0:00:22.6]} 41. Qc3+ {[%clk
0:00:09.1]} 41... f6 {[%clk 0:00:20.4]} 42. a5 {[%clk 0:00:08.8]} 42... g5
{[%clk 0:00:12.2]} 43. hxg5 {[%clk 0:00:08.4]} 43... Qxg5 {[%clk 0:00:14.1]} 44.
a6 {[%clk 0:00:08.9]} 44... h4 {[%clk 0:00:13.6]} 45. gxh4 {[%clk 0:00:09.9]}
45... Qxh4+ {[%clk 0:00:13.4]} 46. Qh3 {[%clk 0:00:10.7]} 46... Qb4 {[%clk
0:00:07.2]} 47. a7 {[%clk 0:00:10]} 47... Qa3 {[%clk 0:00:07]} 48. Qg2+ {[%clk
0:00:09.4]} 1-0